Cogmind - Beta 15 @@@ ROGUE MODE // 2025.08.21 @ 14:38:11 Player: JuustuToug Result: Destroyed by DAS Turret with DAS Cannon Performance ------------- Evolutions (0) 0 Regions Visited (3) 600 Robots Destroyed (14) 70 Value Destroyed (459) 459 Prototype IDs (0) 0 Alien Tech Used (0) 0 Bonus (0) 0 TOTAL SCORE: 1129 Bonus ------- None Cogmind --------- Core Integrity 0/250 Matter 290/300 Energy 98/125 System Corruption 6% Temperature Cool (2) Movement Walking (120) Location -10/Exiles Parts ------- > --- POWER (1) -------- Light Ion Engine > --- PROPULSION (2) --- Aluminum Leg Aluminum Leg > --- UTILITY (2) ------ Small Storage Unit Light Armor Plating > --- WEAPON (2) ------- (None) > --- INVENTORY (8) ---- Ion Engine Aluminum Leg Aluminum Leg Improved Terrain Scanner Hacking Suite Rocket Launcher Peak State ------------ > --- POWER ------------ Light Nuclear Core > --- PROPULSION ------- Aluminum Leg Aluminum Leg > --- UTILITY ---------- Improved Heat Sink Small Storage Unit > --- WEAPON ----------- Heavy EM Pulse Gun Heavy EM Pulse Gun > --- INVENTORY -------- Ion Engine Light Ion Engine Aluminum Leg Aluminum Leg Terrain Scanner Hacking Suite Particle Gun Light Assault Rifle [Rating: 14] Favorites ----------- Power Light Nuclear Core Engine Light Ion Engine Power Core Light Nuclear Core Propulsion Aluminum Leg Leg Aluminum Leg Utility Small Storage Unit Device Improved Heat Sink Storage Small Storage Unit Protection Light Armor Plating Weapon Heavy EM Pulse Gun Energy Gun Heavy EM Pulse Gun Ballistic Gun Light Assault Rifle Build | -11 -10 -10 -10 ------- Run | Yrd Mat Min Exi Slots Evolved . | . . . . Power . | . . . . Propulsion . | . . . . Utility . | . . . . Weapon . | . . . . Parts Attached 20 | 6 8 4 2 Power 4 | 1 1 1 1 Engine 2 | 1 . . 1 Core 2 | . 1 1 . Reactor . | . . . . Propulsion 5 | 2 1 2 . Treads . | . . . . Leg 5 | 2 1 2 . Wheel . | . . . . Hover . | . . . . Flight . | . . . . Utility 5 | 1 2 1 1 Device 2 | . 1 1 . Storage 1 | 1 . . . Processor . | . . . . Hackware . | . . . . Protection 2 | . 1 . 1 Artifact . | . . . . Weapon 6 | 2 4 . . Energy Gun 4 | . 4 . . Energy Cannon . | . . . . Ballistic Gun 2 | 2 . . . Ballistic Cannon . | . . . . Launcher . | . . . . Special Weapon . | . . . . Impact Weapon . | . . . . Slashing Weapon . | . . . . Piercing Weapon . | . . . . Special Melee Weapon . | . . . . Unidentified Prototypes . | . . . . Corrupted Parts 2 | . . 2 . System Corruption 6 | . . 6 . Parts Lost 5 | . . 1 4 Power 1 | . . . 1 Propulsion . | . . . . Utility 1 | . . . 1 Weapon 3 | . . 1 2 Highest Loss Streak 4 | . . 1 4 To Critical Strikes . | . . . . Average Backups 7 | 2 5 7 8 Power 1 | . 1 2 2 Propulsion 1 | . 1 2 2 Utility 1 | . . 2 3 Weapon 1 | 1 1 1 1 Tool/Special . | . . . . Unused Backups 9 | . 2 1 6 Power 1 | . . . 1 Propulsion 2 | . . . 2 Utility 3 | . 1 . 2 Weapon 3 | . 1 1 1 Tool/Special . | . . . . Average Slot Usage (%) 98 | . 95 99 100 Engine 2 | . 7 . . Core 11 | . 6 14 14 Leg 28 | . 28 28 28 Device 2 | . 7 . . Storage 14 | . 14 14 14 Protection 10 | . 2 14 14 Energy Gun 23 | . 11 27 28 Ballistic Gun 4 | . 16 . . Peak Build Rating 14 | 6 14 12 12 Average Rating 10 | 3 9 11 11 On Entrance 7 | . 6 11 12 Naked Turns . | . . . . Heaviest Build 19 | 10 19 19 19 Greatest Support 20 | 20 20 20 20 Greatest Overweight (x) . | . . . . Average Overweight (x) . | . . . . Largest Inventory Capacity 8 | 8 8 8 8 Average Capacity 7 | 7 8 8 8 Most Carried 8 | 4 8 8 8 Average Carried 7 | 2 5 7 7 Final Capacity 8 | 8 8 8 8 Final Carried 8 | 2 8 8 6 Class Distribution -------------------- 58% | Mutant 41% | Scavenger-Mutant Dominant Class ---------------- Mutant | -10/Materials Mutant | -10/Mines Scavenger-Mutant | -10/Exiles Resources | -11 -10 -10 -10 ----------- Run | Yrd Mat Min Exi Matter Collected 429 | 229 123 76 1 Remotely 10 | . . 10 . Salvage Created 521 | . 263 258 . Parts 31 | . 18 13 . Haulers Intercepted . | . . . . Recyclers Shooed . | . . . . Parts Field Recycled . | . . . . Retrieved Matter . | . . . . Parts Self-Destructed . | . . . . Prevented . | . . . . Kills | -11 -10 -10 -10 ------- Run | Yrd Mat Min Exi Combat Hostiles Destroyed 15 | . 6 9 . Guns 12 | . 5 7 . AOE 3 | . 1 2 . Classes Destroyed 4 | . 2 2 . Operator 1 | . 1 . . Swarmer 2 | . . 2 . Grunt 11 | . 6 5 . Assembled 2 | . . 2 . Best Kill Streak 3 | . 3 3 . Combat Bots Only 3 | . 2 3 . Max Kills in Single Turn 2 | . 1 2 . Gunslinging . | . . . . Exploded 2 | . 1 2 . Melee . | . . . . Uniques/NPCs Destroyed . | . . . . Combat | -11 -10 -10 -10 -------- Run | Yrd Mat Min Exi Hostile Shots Fired 71 | . 24 42 5 Missed 23 | . 8 15 . Hits 48 | . 16 27 5 Projectile 48 | . 16 27 5 Critical Strikes 2 | . 1 . 1 Damage Taken 865 | . 269 328 268 Core 265 | . 97 72 96 Absorbed by Shields . | . . . . Core Remaining (%) 100 | 100 . . . Volleys Fired 41 | . 21 20 . Largest 2 | . 2 2 . Hottest 110 | . 90 110 . Shots Fired 83 | . 42 40 1 Gun 83 | . 42 40 1 Cannon . | . . . . Launcher . | . . . . Special . | . . . . Kinetic 32 | . 32 . . Thermal 3 | . . 3 . Explosive . | . . . . Electromagnetic 48 | . 10 37 1 Robot Hit Streak 8 | . 8 5 . Robot Miss Streak 5 | . 5 5 . Penetration Max . | . . . . Secondary Targets 1 | . 1 . . Max Gunslinging Chain 1 | . 1 . . Shots Hit Robots 47 | . 24 23 . Core Hits 28 | . 15 13 . Critical Kills . | . . . . Critical Parts Destroyed . | . . . . Critical Strikes . | . . . . Melee Attacks . | . . . . Impact . | . . . . Slashing . | . . . . Piercing . | . . . . Sneak Attacks . | . . . . Combat Hostiles . | . . . . Follow-up Attacks . | . . . . Damage Inflicted 693 | . 271 422 . Guns 559 | . 239 320 . Cannons . | . . . . Explosions 134 | . 32 102 . Melee . | . . . . Ramming . | . . . . Kinetic 150 | . 150 . . Thermal 166 | . 32 134 . Explosive . | . . . . Electromagnetic 377 | . 89 288 . Impact . | . . . . Slashing . | . . . . Piercing . | . . . . Highest Corruption 6 | . . 6 6 Average Corruption 5 | . . 5 6 Corruption Purged . | . . . . Corruption Blocked . | . . . . Effects 13 | . . 8 5 Message Errors 1 | . . . 1 Matter Fused 1 | . . 1 . Heat Flow Errors 2 | . . . 2 Energy Discharges 4 | . . 4 . Data Loss (minor) 3 | . . 2 1 Data Loss (major) 1 | . . 1 . Misfires 1 | . . . 1 Overload Shots . | . . . . Overflow Damage . | . . . . Projectiles . | . . . . Explosions . | . . . . Melee . | . . . . Knockbacks . | . . . . Impact . | . . . . Kinetic . | . . . . Secondary . | . . . . Self-Inflicted Damage 31 | . 31 . . Shots 1 | . 1 . . Rammed . | . . . . Targets Rammed . | . . . . Kicked . | . . . . Crushed . | . . . . Highest Temperature 371 | . 46 371 166 Average Temperature 92 | . 18 106 72 Received Heat Transfer 316 | . 147 169 . Effects 3 | . . 3 . Shutdowns 1 | . . 1 . Interference 2 | . . 2 . Siege Activations . | . . . . Martial Activations . | . . . . Shielding Activations . | . . . . Robots Disrupted . | . . . . Combat Hostiles . | . . . . Robots Corrupted . | . . . . Combat Hostiles . | . . . . Parts Fried 2 | . 1 1 . Impact Corruptions . | . . . . Robots Melted . | . . . . Combat Hostiles . | . . . . Parts Melted . | . . . . Heat Transferred 224 | . 50 174 . Parts Sabotaged . | . . . . Parts Stolen . | . . . . Parts Stripped . | . . . . Power Chain Reactions 2 | . 1 1 . Alert | -11 -10 -10 -10 ------- Run | Yrd Mat Min Exi Maximum Alert Level . | . . . . Low Security (%) 100 | 100 100 100 . Level 1 . | . . . . Level 2 . | . . . . Level 3 . | . . . . Level 4 . | . . . . Level 5 . | . . . . High Security . | . . . . Max Security . | . . . . Peak Influence 65 | . 60 65 . Initial 9 | . . 9 . Average 19 | . 23 18 . Influence Increases 399 | . 174 225 . Destroy 0b10 Robot/C 260 | . 120 140 . Destroy 0b10 Robot/NC 5 | . 5 . . Destroy Leader 50 | . 30 20 . Successful Hack 14 | . 14 . . Disable Machine 15 | . . 15 . Destroy Structure 10 | . 5 5 . Lose Combat Pursuer 45 | . . 45 . Influence Decreases 399 | . 150 249 . Entered New Map 15 | . . 15 . Time Decay 374 | . 150 224 . Lost Part 10 | . . 10 . Squads Dispatched 1 | . 1 . . Investigation . | . . . . Extermination . | . . . . Reinforcement 1 | . 1 . . Assault . | . . . . Garrison . | . . . . Intercept . | . . . . Searches Triggered . | . . . . Construction Impeded . | . . . . Haulers Reinforced . | . . . . Active Scanning Responses . | . . . . Cargo Convoy Interrupts . | . . . . Stealth | -11 -10 -10 -10 --------- Run | Yrd Mat Min Exi Distress Signals . | . . . . Communications Jammed . | . . . . Distress Signals . | . . . . Times Spotted 21 | . 7 14 . Peak Tracking Total 11 | . 2 5 11 Tactical Retreats 3 | . . 3 . Traps | -11 -10 -10 -10 ------- Run | Yrd Mat Min Exi Traps Triggered 1 | . 1 . . Indirectly . | . . . . Trap Hack Attempts . | . . . . Triggered . | . . . . Disarmed . | . . . . Reprogrammed . | . . . . Reused . | . . . . Traps Extracted . | . . . . Installed . | . . . . Triggered . | . . . . Machines | -11 -10 -10 -10 ---------- Run | Yrd Mat Min Exi Machines Disabled 2 | . . 1 1 Max in Single Turn 1 | . . 1 1 Machines Repaired . | . . . . Machines Dismantled . | . . . . Machines Sabotaged . | . . . . Overloaded Fab Kills . | . . . . Hacking | -11 -10 -10 -10 --------- Run | Yrd Mat Min Exi Machines Accessed 1 | . 1 . . Terminals 1 | . 1 . . Fabricators . | . . . . Repair Stations . | . . . . Recycling Units . | . . . . Scanalyzers . | . . . . Garrison Access . | . . . . Total Hacks 2 | . 2 . . Successful 1 | . 1 . . Failed 1 | . 1 . . Catastrophic 1 | . 1 . . Database Lockouts . | . . . . Manual . | . . . . Terminals 2 | . 2 . . Fabricators . | . . . . Repair Stations . | . . . . Recycling Units . | . . . . Scanalyzers . | . . . . Garrison Access . | . . . . Terminal Hacks 1 | . 1 . . Zone Layout 1 | . 1 . . Fabricator Hacks . | . . . . Repair Station Hacks . | . . . . Recycling Unit Hacks . | . . . . Scanalyzer . | . . . . Garrison Access Hacks . | . . . . Unauthorized Hacks . | . . . . Terminals . | . . . . Fabricators . | . . . . Repair Stations . | . . . . Recycling Units . | . . . . Scanalyzers . | . . . . Garrison Access . | . . . . Data Cores Recovered . | . . . . Used . | . . . . Hacking Detections 1 | . 1 . . Full Trace Events . | . . . . Feedback Events . | . . . . Feedback Blocked . | . . . . Robot Schematics Acquired . | . . . . Robots Built . | . . . . Authchips . | . . . . Time . | . . . . Total Robot Build Rating . | . . . . Part Schematics Acquired . | . . . . Parts Built . | . . . . Authchips . | . . . . Time . | . . . . Total Part Build Rating . | . . . . Parts Repaired . | . . . . Time . | . . . . Parts Recycled . | . . . . Recycled Matter . | . . . . Retrieved Matter . | . . . . Retrieved Components . | . . . . Parts Scanalyzed . | . . . . Part Schematics Acquired . | . . . . Parts Damaged . | . . . . Bothacking | -11 -10 -10 -10 ------------ Run | Yrd Mat Min Exi Used RIF Installer . | . . . . Robots Hacked . | . . . . Non-combat . | . . . . Combat . | . . . . Robot Hacks Applied . | . . . . Relay Couplers Released . | . . . . Fabnet Peak Effective % . | . . . . Robots Rewired . | . . . . Allies Hacked . | . . . . Hacks Repelled . | . . . . Allies | -11 -10 -10 -10 -------- Run | Yrd Mat Min Exi Total Allies 3 | . . 3 . Largest Group 2 | . . 2 2 Highest-Rated Group 49 | . . 49 49 Highest-Rated Ally 31 | . . 31 31 Total Orders . | . . . . Ally Attacks . | . . . . Total Damage . | . . . . Kills . | . . . . Allies Corrupted . | . . . . Allies Melted . | . . . . Intel | -11 -10 -10 -10 ------- Run | Yrd Mat Min Exi Active Infowar (turns) . | . . . . Robot Analysis Total . | . . . . Derelict Logs Recovered 1 | . . 1 . Drone Launches . | . . . . Drone Recoveries . | . . . . Exploration | -11 -10 -10 -10 ------------- Run | Yrd Mat Min Exi Turns Passed 1448 | 69 380 872 127 Spaces Moved 931 | 49 232 545 105 Core 10 | 10 . . . Treads . | . . . . Legs 921 | 39 232 545 105 Wheels . | . . . . Hover . | . . . . Flight . | . . . . Fastest Speed 50 | 50 120 120 120 Average Speed 119 | 105 120 120 120 Slowest Speed 120 | 120 120 120 120 Overloaded Moves . | . . . . Propulsion Burnouts . | . . . . Robots Hopped . | . . . . Potential Cave-ins . | . . . . Cave-ins Triggered . | . . . . Exploration Rate (%) 43 | 4 32 97 42 Regions Visited 3 Branch Regions 2 Pre-discovered Areas . | . . . . Known Exits Taken . | . . . . Unknown Exits Taken 3 | 1 1 1 . Scrap Searched 1 | . . 1 . Spaces Dug . | . . . . Terrain Destroyed 9 | . 4 5 . Melee . | . . . . Projectile . | . . . . AOE 9 | . 4 5 . Terrain Rammed . | . . . . Walls Destroyed . | . . . . Machines Disabled . | . . . . Actions | -11 -10 -10 -10 --------- Run | Yrd Mat Min Exi Total 1196 | 66 298 725 107 Wait 168 | 4 20 144 . Move 928 | 48 231 544 105 Hop . | . . . . Pick Up 25 | 8 12 5 . Fast Attach . | . . . . Attach 11 | 6 1 2 2 Detach . | . . . . Swap 11 | . 7 4 . Drop 12 | . 6 6 . Fire 41 | . 21 20 . Melee . | . . . . Ram . | . . . . Kick . | . . . . Crush . | . . . . Escape Stasis . | . . . . Rewire . | . . . . Trap . | . . . . Miscellaneous . | . . . . Route ------- -11/Scrapyard -10/Materials -10/Mines (discovered 3 exits: [*Mat x2] / [*Exi]) -10/Exiles History --------- Turn | Location | Event 27 | -11/Scrapyard | Discovered new exit (range 15) 70 | -11/Scrapyard | Entered Materials 371 | -10/Materials | Discovered new exit (range 13) 450 | -10/Materials | Entered Mines 453 | -10/Mines | Received a Mining Laser from a helpful Derelict 518 | -10/Mines | Excavation squad dispatched 518 | -10/Mines | A large section of the Mines collapsed 577 | -10/Mines | Discovered new exit (range 8) 622 | -10/Mines | Build established: Mutant 775 | -10/Mines | Discovered new exit (range 9) 808 | -10/Mines | Learned Materials emergency access door positions 820 | -10/Mines | Core integrity fell below 50% 1005 | -10/Mines | Received a Rocket Launcher from a helpful Derelict 1205 | -10/Mines | Build established: Scavenger-Mutant 1231 | -10/Mines | A weapon hastily lodged in a ceiling crevice suddenly fell to the ground 1278 | -10/Mines | Deemed a non-threat by the Exiles lab entrance 1278 | -10/Mines | Discovered new exit (range 5) 1322 | -10/Mines | Entered Exiles 1322 | -10/Exiles | Accompanied by 2 allies 1352 | -10/Exiles | Led the pair of lost Derelicts to a safe place 1352 | -10/Exiles | Met 8R-AWN 1372 | -10/Exiles | Met EX-HEX 1406 | -10/Exiles | Met EX-BIN 1440 | -10/Exiles | Attacked by the Exiles 1448 | -10/Exiles | Core integrity fell below 20% 1449 | -10/Exiles | Destroyed by DAS Turret with DAS Cannon Last Messages --------------- for a sweet deal? 01408_ EX-BIN: "Please do it. The faster we get more data and tweak this thing to perfection, the faster I can get back to my spacelab designs." 01420_ DFZBJHD K IZ<= FMBF#,WQ 01439_ System corrupted: FCS attempts to trigger Hvy. EM Pulse Gun. 01439_ System corrupted: Hvy. EM Pulse Gun misfires. 01439_ Machine disabled. 01440_ EXILES: Hostile robot within lab perimeter. Defensive protocols time, folks! 01442_ Particle Gun destroyed. 01442_ Lgt. Armor Plating destroyed. 01442_ Critical hit (Blast). 01443_ Hvy. EM Pulse Gun destroyed. 01443_ Acquired 1 matter. 01445_ Lgt. Nuclear Core destroyed. 01447_ EX-BIN: "I just want to science!" Map ----- +----------------------------------------------------+ | ?????????????????????????????????? #????????? | | ??????????????????????????????????# #????????? | | ??????????????????????????????????# #????????? | | ??????????????????????????????????# #????????? | | ??????????????????????????????????# #??""""""? | | ??????????????????????????????????# #??""""""? | | ?????????????????????????????????## ###"" """" | | ?????????????????????????????????#" """" | | ?????????????????????????????????#" """ | | ?????????????????????????????????#" """ | | ?????????????????????????????????#" """ | | ?????????????????????????????????#" """ | | ?????????????????????????????????#" """ | | ?????????????????????????????????## """ | | ??????????????????????????????????# """ | | ??????????????????????????????????#" "X" """ | | ???????????????????"??????????????#" """ | | ??????????????????? ?????????????#" """"""""" | | ????????????????????" ???????????##" #######??? | | ????????????????????# ??????????##"" #????????? | | ??????????????????#?# ##??######"" #????????? | | ???????????"""#####X# #"###""""""" ##???????? | | ??????????? """""" " "" ##???#### | | ?????????? "" """ " #####""" | | ?????????? " %" " | | ?????????? @ c " | | ?????????? % | | ??????????# | | ???????????# | | ???????????##" | | ?????????????""" """""" | | ?????????????? ######""" | | ?????????????" ""##????#####""" | | ?????????????"" """##?????????##""" | | ?????????????" """##???????????#"""" | | ?????????????? ""#????????????#"" | | ?????????????? ?#??????????????""" | | ???????????????? ??????????????? | | ?????????????????? ??????????????? | | ????????????????????? ??????????????? | | ??????????????????????? ??????????????? | | ???????????????????????????????????????? | | ?????????????????????????????????????????" | | ??????????????????????????????????????????" " " " | | ????????????????????????????????????????????""" "" | | ??????????????????????????????????????????????""?? | | ?????????????????????????????????????????????????? | | ?????????????????????????????????????????????????? | | ?????????????????????????????????????????????????? | | ?????????????????????????????????????????????????? | +----------------------------------------------------+ Best States ------------- Heat Dissipation 39 Energy Generation 14 Energy Capacity 160 Matter Stores 300 Matter Capacity 300 Sight Range 16 Terrain Scan Density 10 Armor Coverage 150 Evasion (%) 55 Item Schematics ----------------- None Robot Schematics ------------------ None Fabricated ------------ Nothing Repaired ---------- Nothing Alien Tech Used ----------------- None Achievements -------------- None Challenges ------------ None Game ------ Seed SlugMatterDriver Manual? 0 Play Time 00:11:04 Cumulative 64.7 hours Start 2025.08.21 @ 14:27:53 End 2025.08.21 @ 14:38:11 Sessions 1 Manual Loads 0 Difficulty Rogue Special Mode None Game No. 48 Rogue 48 Adventurer 0 Explorer 0 Win Type - Total 2 Types 1/0/0/1/0/0/0/0/0/0 Lore% 57 Gallery% 48 Achievement% 41 Wizard Run 0 Options --------- Layout 1 ASCII 0 Keyboard 0 Movement Mouse Keybinds 0 Fullscreen 1 Font 24/Smallcaps Map View 50x35 Zoom Use 0% Tactical HUD 1 Map Filters NONE Filters NONE Steam 1 RUN: 4d6d2a7f-a4db-450a-aa8c-fc29564daf26